[Event "US-ch Women 2019"]
[Site "Saint Louis"]
[Date "2019.03.25"]
[Round "6.4"]
[White "Foisor, Sabina-Francesca"]
[Black "Wang, Annie"]
[Result "0-1"]
[ECO "D37"]
[WhiteElo "2276"]
[BlackElo "2304"]
[Annotator "RC"]
[PlyCount "70"]
[EventDate "2019.03.20"]
[EventType "swiss"]
[EventCountry "USA"]
[SourceTitle "playchess.com"]
[Source "ChessBase"]
[SourceQuality "1"]
[TimeControl "5400+30"]

1. d4 {[%emt 0:00:00]} Nf6 {[%emt 0:00:00]} 2. Nf3 {[%emt 0:00:00]} e6 {[%emt 0:00:00]} 3. c4 {[%emt 0:00:00]} d5 {[%emt 0:00:00]} 4. Nc3 {[%emt 0:00:00]} Be7 {[%emt 0:00:00]} 5. Bf4 {[%emt 0:00:00]} O-O {[%emt 0:00:06]} 6. a3 {[%emt 0:00:01]} b6 {[%emt 0:01:14]} 7. e3 {[%emt 0:00:20]} Bb7 {[%emt 0:01:21]} 8. cxd5 {[%emt 0:00:25]} exd5 {[%emt 0:03:17]} 9. Bd3 {[%emt 0:04:26]} c5 {[%emt 0:01:40]} 10. O-O {[%emt 0:01:37]} Nbd7 {[%emt 0:01:04]} 11. Rc1 {[%emt 0:01:31]} Ne4 {[%emt 0:04:26]} 12. Nd2 {[%emt 0:12:57]} Ndf6 {[%emt 0:04:31]} 13. dxc5 {[%emt 0:02:42]} Nxd2 {[%emt 0:06:51]} 14. Qxd2 {[%emt 0:00:08]} bxc5 {[%emt 0:00:08]} 15. Na4 {[%emt 0:08:01]} Rc8 {[%emt 0:04:00]} 16. Bf5 {[%emt 0:02:06]} Rc6 {[%emt 0:01:15]} 17. Nc3 {[%emt 0:03:24]} d4 {[%emt 0:07:19]} 18. exd4 {[%emt 0:18:43]} cxd4 {[%emt 0:00:10]} 19. Ne2 {[%emt 0:00:19]} Qd5 {[%emt 0:02:53]} 20. Bh3 {[%emt 0:00:31]} Rxc1 {[%emt 0:17:18]} 21. Rxc1 {[%emt 0:03:37]} g5 {[%emt 0:02:12]} 22. Bg3 {[%emt 0:08:53]} g4 {[%emt 0:01:39]} 23. Nf4 {[%emt 0:01:46]} Qf5 {[%emt 0:03:12]} 24. Bxg4 {[%emt 0:02:04]} Nxg4 {[%emt 0:02:04]} 25. h3 {[%emt 0:00:31]} Ne5 {[%emt 0:04:53]} 26. Rc7 {[%emt 0:02:23]} Bxg2 {[%emt 0:01:25]} 27. Kxg2 {[%emt 0:02:57]} Qe4+ {[%emt 0:00:09]} 28. f3 {[%emt 0:00:20]} Qxf3+ {[%emt 0:00:17]} 29. Kh2 {[%emt 0:00:04]} Qf1 {[%emt 0:00:32]} 30. Qe2 {[%emt 0:07:03]} Nf3+ {[%emt 0:00:15]} 31. Qxf3 {[%emt 0:00:03]} Qxf3 {[%emt 0:00:09]} 32. Rxe7 {[%emt 0:00:03]} Rc8 {[%emt 0:00:36]} 33. Re2 {[%emt 0:01:16]} d3 {[%emt 0:00:10]} 34. Rg2 {[%emt 0:00:46]} Rc2 {[%emt 0:01:13]} 35. Be1+ {[%emt 0:05:13]} Kf8 {[%emt 0:00:56]} 0-1

[Event "US-ch Women 2019"]
[Site "Saint Louis"]
[Date "2019.03.27"]
[Round "7.6"]
[White "Sharevich, Anna"]
[Black "Feng, Maggie"]
[Result "1-0"]
[ECO "A40"]
[WhiteElo "2282"]
[BlackElo "2199"]
[Annotator "RC"]
[PlyCount "49"]
[EventDate "2019.03.20"]
[EventType "swiss"]
[EventCountry "USA"]
[SourceTitle "playchess.com"]
[Source "ChessBase"]
[SourceQuality "1"]
[TimeControl "5400+30"]

1. d4 {[%emt 0:00:00]} e6 {[%emt 0:00:00]} 2. Bf4 {[%emt 0:00:00]} f5 {[%emt 0:00:48]} 3. e3 {[%emt 0:00:04]} Nf6 {[%emt 0:00:41]} 4. h3 {[%emt 0:00:21]} b6 {[%emt 0:04:29]} 5. Nf3 {[%emt 0:01:55]} Bb7 {[%emt 0:00:18]} 6. Nbd2 {[%emt 0:00:19]} Be7 {[%emt 0:01:17]} 7. Bd3 {[%emt 0:00:48]} O-O {[%emt 0:02:02]} 8. Qe2 {[%emt 0:01:57]} Ne4 {[%emt 0:04:03]} 9. Rg1 {[%emt 0:02:47]} c5 {[%emt 0:03:12]} 10. c3 {[%emt 0:00:50]} d6 {[%emt 0:07:11]} 11. g4 {[%emt 0:02:02]} Kh8 {[%emt 0:03:32]} 12. gxf5 {[%emt 0:01:32]} exf5 {[%emt 0:00:26]} 13. O-O-O {[%emt 0:05:21]} a5 {[%emt 0:07:13]} 14. Bxe4 {[%emt 0:05:52]} fxe4 {[%emt 0:10:01]} 15. Ng5 {[%emt 0:00:28]} Qd7 {[%emt 0:14:33]} 16. Nxh7 {[%emt 0:06:22]} Rf5 {[%emt 0:06:19]} 17. Qg4 {[%emt 0:07:24]} Bd8 {[%emt 0:02:59]} 18. Ng5 {[%emt 0:02:20]} Bxg5 {[%emt 0:02:09]} 19. Bxg5 {[%emt 0:00:08]} Qf7 {[%emt 0:01:33]} 20. Nc4 {[%emt 0:10:13]} cxd4 {[%emt 0:11:16]} 21. Qh4+ {[%emt 0:10:05]} Kg8 {[%emt 0:00:18]} 22. Bh6 {[%emt 0:01:19]} g6 {[%emt 0:00:36]} 23. Nxd6 {[%emt 0:01:34]} Qxa2 {[%emt 0:04:46]} 24. Rxg6+ {[%emt 0:00:39]} Kh7 {[%emt 0:00:10]} 25. Rg7+ {[%emt 0:00:22]} 1-0

[Event "US-ch Women 2019"]
[Site "Saint Louis"]
[Date "2019.03.29"]
[Round "9.1"]
[White "Yu, Jennifer"]
[Black "Abrahamyan, Tatev"]
[Result "1/2-1/2"]
[ECO "E46"]
[WhiteElo "2273"]
[BlackElo "2377"]
[Annotator "RC"]
[PlyCount "98"]
[EventDate "2019.03.20"]
[EventType "swiss"]
[EventCountry "USA"]
[SourceTitle "playchess.com"]
[Source "ChessBase"]
[SourceQuality "1"]
[TimeControl "5400+30"]

1. d4 {[%emt 0:00:00]} Nf6 {[%emt 0:00:00]} 2. c4 {[%emt 0:00:00]} e6 {[%emt 0:00:00]} 3. Nc3 {[%emt 0:00:00]} Bb4 {[%emt 0:00:00]} 4. e3 {[%emt 0:00:00]} O-O {[%emt 0:00:00]} 5. Nge2 {[%emt 0:00:07]} c6 {[%emt 0:00:00]} 6. a3 {[%emt 0:00:33]} Ba5 {[%emt 0:00:04]} 7. c5 {[%emt 0:00:28]} d5 {[%emt 0:03:18]} 8. cxd6 {[%emt 0:00:16]} Qxd6 {[%emt 0:00:07]} 9. b4 {[%emt 0:00:09]} Bc7 {[%emt 0:01:56]} 10. g3 {[%emt 0:00:30]} e5 {[%emt 0:00:44]} 11. Bg2 {[%emt 0:05:34]} Re8 {[%emt 0:00:15]} 12. dxe5 {[%emt 0:06:58]} Qxd1+ {[%emt 0:16:00]} 13. Nxd1 {[%emt 0:02:12]} Bxe5 {[%emt 0:00:06]} 14. Bb2 {[%emt 0:00:08]} a5 {[%emt 0:00:45]} 15. bxa5 {[%emt 0:07:04]} Nbd7 {[%emt 0:06:23]} 16. O-O {[%emt 0:04:57]} Rxa5 {[%emt 0:03:42]} 17. Bxe5 {[%emt 0:01:52]} Nxe5 {[%emt 0:00:59]} 18. Ndc3 {[%emt 0:00:04]} Nd3 {[%emt 0:25:19]} 19. Nd4 {[%emt 0:11:57]} Nc5 {[%emt 0:02:46]} 20. a4 {[%emt 0:03:40]} Be6 {[%emt 0:04:47]} 21. Rab1 {[%emt 0:06:40]} Rea8 {[%emt 0:08:48]} 22. Rb4 {[%emt 0:11:58]} g6 {[%emt 0:08:16]} 23. Rd1 {[%emt 0:07:04]} R8a7 {[%emt 0:07:32]} 24. Ra1 {[%emt 0:20:30]} Nd5 {[%emt 0:01:29]} 25. Bxd5 {[%emt 0:05:52]} Bxd5 {[%emt 0:00:07]} 26. Nxd5 {[%emt 0:01:40]} cxd5 {[%emt 0:00:05]} 27. Nb3 {[%emt 0:00:36]} Nxb3 {[%emt 0:04:55]} 28. Rxb3 {[%emt 0:00:04]} b5 {[%emt 0:00:05]} 29. Rd1 {[%emt 0:00:07]} bxa4 {[%emt 0:00:07]} 30. Ra3 {[%emt 0:00:03]} Kf8 {[%emt 0:01:15]} 31. Rd4 {[%emt 0:01:14]} Ke7 {[%emt 0:00:24]} 32. Kf1 {[%emt 0:00:20]} Kd6 {[%emt 0:00:59]} 33. Ke2 {[%emt 0:00:13]} Kc5 {[%emt 0:01:00]} 34. Kd3 {[%emt 0:00:43]} Kb5 {[%emt 0:01:32]} 35. Kc3 {[%emt 0:00:04]} Rc7+ {[%emt 0:00:56]} 36. Kb2 {[%emt 0:01:35]} Rc5 {[%emt 0:00:47]} 37. Rad3 {[%emt 0:01:08]} Kc6 {[%emt 0:00:32]} 38. Ka3 {[%emt 0:00:31]} Rc2 {[%emt 0:01:39]} 39. Rf4 {[%emt 0:00:37]} f5 {[%emt 0:00:32]} 40. Rdd4 {[%emt 0:01:14]} Rac5 {[%emt 0:01:13]} 41. Rxa4 {[%emt 0:00:00]} R5c3+ {[%emt 0:00:00]} 42. Kb4 {[%emt 0:00:00]} Rc4+ {[%emt 0:00:00]} 43. Kb3 {[%emt 0:00:00]} Kb5 {[%emt 0:00:00]} 44. Raxc4 {[%emt 0:00:00]} Rxc4 {[%emt 0:00:00]} 45. Rf3 {[%emt 0:00:00]} Kc5 {[%emt 0:00:00]} 46. Rf4 {[%emt 0:00:00]} Rxf4 {[%emt 0:00:00]} 47. gxf4 {[%emt 0:00:00]} d4 {[%emt 0:00:00]} 48. Kc2 {[%emt 0:00:00]} Kc4 {[%emt 0:00:00]} 49. Kd2 {[%emt 0:00:00]} h6 {[%emt 0:01:52]} 1/2-1/2